fUSD/lending_fUSD_20260617
["ID","MTS","AMOUNT","RATE_DAILY","PERIOD"]
[425297094,1781662232000,-151.0,0.0001995,2]
[425297093,1781662232000,-151.0,0.0001995,2]
[425297102,1781662232000,-405.0,0.0002,2]
[425297113,1781662232000,-1333.4166319,0.00020935,2]
[425297123,1781662232000,-230.36957063,0.00021469,2]
[425297124,1781662232000,-47117.04863448,0.0002147,2]
[425297126,1781662232000,-118214.6256047,0.0002147,2]
[425297141,1781662232000,-253.0,0.00023,2]
[425297143,1781662232000,-166.66,0.00023117,30]
[425297145,1781662232000,-421.625,0.00023258,3]
[425297148,1781662232000,-151.0,0.0002335,2]
[425297156,1781662232000,-151.0,0.0002335,2]
[425297153,1781662232000,-151.0,0.0002335,2]
[425297146,1781662232000,-173.7568377,0.00023258,3]
[425297149,1781662232000,-151.0,0.0002335,2]
[425297155,1781662232000,-151.0,0.0002335,2]
[425297154,1781662232000,-151.0,0.0002335,2]
[425297150,1781662232000,-151.0,0.0002335,2]
[425297157,1781662232000,-151.0,0.0002335,2]
[425297158,1781662232000,-151.0,0.0002335,2]
[425297122,1781662232000,-500.0,0.00021469,2]
[425297151,1781662232000,-151.0,0.0002335,2]
[425297144,1781662232000,-200.85732099,0.00023136,2]
[425297152,1781662232000,-151.0,0.0002335,2]
[425297147,1781662232000,-2439.46,0.00023259,7]
[425297132,1781662232000,-253.0,0.00022,2]
[425297130,1781662232000,-166.66,0.00021744,2]
[425297131,1781662232000,-180.0,0.00022,2]
[425297135,1781662232000,-166.66,0.00022202,30]
[425297134,1781662232000,-161.0,0.00022,2]
[425297128,1781662232000,-500.0,0.00021569,2]
[425297129,1781662232000,-2448.42,0.00021629,2]
[425297127,1781662232000,-200.857321,0.00021529,2]
[425297136,1781662232000,-406.0,0.00022378,2]
[425297137,1781662232000,-391.33,0.00022466,2]
[425297139,1781662232000,-10392.96,0.00022691,2]
[425297140,1781662232000,-180.0,0.00023,2]
[425297138,1781662232000,-166.66,0.0002266,30]
[425297133,1781662232000,-202.0,0.00022,2]
[425297142,1781662232000,-202.0,0.00023,2]
[425297237,1781662239000,-300.0,0.00024979,10]
[425297234,1781662239000,-1757.71124199,0.0002488,2]
[425297236,1781662239000,-154.8177409,0.00024977,7]
[425297235,1781662239000,-2422.1,0.00024888,7]
[425297241,1781662239000,-218.2194711,0.00024979,2]
[425297240,1781662239000,-300.0,0.00024979,10]
[425297238,1781662239000,-170.6616668,0.00024979,10]
[425297242,1781662239000,-296.65887507,0.00024979,2]
[425297243,1781662239000,-305.13556486,0.00024979,10]
[425297244,1781662239000,-300.0,0.00024979,10]
[425297245,1781662239000,-398.20556007,0.00024979,3]
[425297239,1781662239000,-129.3383332,0.00024979,10]
[425297251,1781662240000,-151.73,0.00024658,2]
[425297253,1781662240000,-500.0,0.00024979,2]
[425297252,1781662240000,-2554.70159693,0.00024979,3]
[425297254,1781662240000,-500.0,0.00024979,2]
[425297257,1781662240000,-2107.72057936,0.0002498,7]
[425297256,1781662240000,-30641.72505217,0.0002498,7]
[425297258,1781662240000,-86325.37200007,0.0002498,7]
[425297259,1781662240000,-14120.04636139,0.0002498,7]
[425297260,1781662240000,-59836.41775372,0.0002498,7]
[425297255,1781662240000,-470.40885879,0.00024979,2]
[425297313,1781662242000,-4821.12710788,0.0002498,7]
[425297316,1781662243000,-423.95581672,0.0002498,7]
[425297314,1781662243000,-541.54300055,0.0002498,7]
[425297315,1781662243000,-464.76347741,0.0002498,7]
[425297317,1781662243000,-355.33617466,0.0002498,7]
[425297322,1781662243000,-24443.9998,0.0002498,7]
[425297318,1781662243000,-5086.18997568,0.0002498,7]
[425297321,1781662243000,-2481.1749401,0.0002498,7]
[425297319,1781662243000,-332.41810094,0.0002498,7]
[425297320,1781662243000,-688.13499957,0.0002498,7]
[425297324,1781662243000,-524.60980056,0.0002498,7]
[425297337,1781662247000,417.12981222,0.00015,2]
[425297338,1781662263000,651.51728562,0.00027478,120]
[425297340,1781662365000,1118.82,0.00029452,120]
[425297341,1781662899000,1045.56,0.00030136,120]
[425297342,1781662951000,158.0,0.00030137,120]
[425297345,1781663091000,216.2,0.00030136,120]
[425297347,1781663194000,240.0,0.0003,120]
[425297349,1781663207000,600.0,0.0003,120]
[425297351,1781663294000,1000.0,0.00030137,120]
[425297405,1781663432000,-150.0,0.000199,2]
[425297384,1781663432000,-152.0,0.00019,2]
[425297388,1781663432000,-151.0,0.00019,2]
[425297401,1781663432000,-151.0,0.00019,2]
[425297390,1781663432000,-151.0,0.00019,2]
[425297386,1781663432000,-152.0,0.00019,2]
[425297403,1781663432000,-152.0,0.00019,2]
[425297408,1781663432000,-302.73805766,0.00019979,2]
[425297418,1781663432000,-150.0,0.0001998,2]
[425297413,1781663432000,-151.0,0.0001998,2]
[425297420,1781663432000,-150.0,0.0001998,2]
[425297409,1781663432000,-165.1479113,0.00019979,2]
[425297415,1781663432000,-151.0,0.0001998,2]
[425297382,1781663432000,-151.0,0.00019,2]
[425297417,1781663432000,-153.0,0.0001998,2]
[425297419,1781663432000,-151.0,0.0001998,2]
[425297421,1781663432000,-153.0,0.0001998,2]
[425297411,1781663432000,-151.0,0.0001998,2]
[425297397,1781663432000,-152.0,0.00019,2]
[425297376,1781663432000,-152.0,0.00019,2]
[425297393,1781663432000,-151.0,0.00019,2]
[425297422,1781663432000,-151.0,0.0001998,2]
[425297363,1781663432000,-150.0,0.00019,2]
[425297362,1781663432000,-500.0,0.00019,5]
[425297361,1781663432000,-352.4128397,0.00018981,2]
[425297364,1781663432000,-150.0,0.00019,2]
[425297365,1781663432000,-151.0,0.00019,2]
[425297366,1781663432000,-151.0,0.00019,2]
[425297368,1781663432000,-150.0,0.00019,2]
[425297380,1781663432000,-153.0,0.00019,2]
[425297369,1781663432000,-150.0,0.00019,2]
[425297374,1781663432000,-152.0,0.00019,2]
[425297370,1781663432000,-151.0,0.00019,2]
[425297371,1781663432000,-44.86874905,0.00019,2]
[425297373,1781663432000,-150.0,0.00019,2]
[425297372,1781663432000,-106.13125095,0.00019,2]
[425297378,1781663432000,-151.0,0.00019,2]
[425297395,1781663432000,-152.0,0.00019,2]
[425297399,1781663432000,-151.0,0.00019,2]
[425297367,1781663432000,-150.0,0.00019,2]
[425297423,1781663432000,-151.0,0.0001998,2]
[425297443,1781663432000,-310.0,0.00019998,2]
[425297424,1781663432000,-151.0,0.0001998,2]
[425297446,1781663432000,-151.0,0.00019998,2]
[425297444,1781663432000,-151.0,0.00019998,2]
[425297450,1781663432000,-151.0,0.00019998,2]
[425297449,1781663432000,-153.0,0.00019998,2]
[425297452,1781663432000,-152.0,0.00019998,2]
[425297451,1781663432000,-150.0,0.00019998,2]
[425297454,1781663432000,-151.0,0.00019998,2]
[425297456,1781663432000,-151.0,0.00019999,2]
[425297453,1781663432000,-151.0,0.00019998,2]
[425297459,1781663432000,-151.0,0.00019999,2]
[425297464,1781663432000,-150.0,0.00019999,2]
[425297461,1781663432000,-311.0,0.00019999,2]
[425297462,1781663432000,-317.0,0.00019999,2]
[425297465,1781663432000,-320.0,0.00019999,2]
[425297458,1781663432000,-151.0,0.00019999,2]
[425297463,1781663432000,-310.0,0.00019999,2]
[425297460,1781663432000,-150.0,0.00019999,2]
[425297426,1781663432000,-480.80168755,0.00019996,2]
[425297457,1781663432000,-152.0,0.00019999,2]
[425297448,1781663432000,-153.0,0.00019998,2]
[425297455,1781663432000,-151.0,0.00019998,2]
[425297445,1781663432000,-269.16586335,0.00019998,2]
[425297447,1781663432000,-150.0,0.00019998,2]
[425297430,1781663432000,-500.0,0.00019996,2]
[425297432,1781663432000,-153.0,0.00019997,2]
[425297427,1781663432000,-500.0,0.00019996,2]
[425297431,1781663432000,-151.0,0.00019997,2]
[425297428,1781663432000,-500.0,0.00019996,2]
[425297429,1781663432000,-552.7855922,0.00019996,2]
[425297433,1781663432000,-150.0,0.00019997,2]
[425297435,1781663432000,-500.0,0.00019998,2]
[425297425,1781663432000,-150.0,0.0001998,2]
[425297439,1781663432000,-320.0,0.00019998,2]
[425297436,1781663432000,-288.52398664,0.00019998,2]
[425297437,1781663432000,-161.25869944,0.00019998,2]
[425297442,1781663432000,-311.0,0.00019998,2]
[425297440,1781663432000,-151.0,0.00019998,2]
[425297466,1781663432000,-314.0,0.00019999,2]
[425297434,1781663432000,-150.0,0.00019997,2]
[425297441,1781663432000,-321.0,0.00019998,2]
[425297438,1781663432000,-500.0,0.00019998,2]
[425297500,1781663433000,-166.66,0.00022495,30]
[425297497,1781663433000,-150.0,0.00022,2]
[425297488,1781663433000,-402.0,0.0002137,2]
[425297498,1781663433000,-166.66,0.0002205,30]
[425297499,1781663433000,-1926.32,0.000223,2]
[425297495,1781663433000,-190.0,0.00022,2]
[425297493,1781663433000,-150.0,0.000218,2]
[425297492,1781663433000,-166.66,0.00021605,2]
[425297494,1781663433000,-172.54956873,0.00022,2]
[425297490,1781663433000,-410.0,0.0002137,2]
[425297496,1781663433000,-152.0,0.00022,2]
[425297501,1781663433000,-150.0,0.000225,2]
[425297489,1781663433000,-406.0,0.0002137,2]
[425297510,1781663433000,-150.0,0.000232,2]
[425297504,1781663433000,-150.0,0.000228,2]
[425297503,1781663433000,-150.0,0.000227,2]
[425297509,1781663433000,-150.0,0.000231,2]
[425297506,1781663433000,-166.66,0.00022941,30]
[425297491,1781663433000,-150.0,0.000215,2]
[425297505,1781663433000,-150.0,0.000229,2]
[425297467,1781663433000,-151.0,0.00019999,2]
[425297486,1781663433000,-150.0,0.00021,2]
[425297507,1781663433000,-190.0,0.00023,2]
[425297468,1781663433000,-315.0,0.00019999,2]
[425297473,1781663433000,-313.0,0.00019999,2]
[425297469,1781663433000,-313.0,0.00019999,2]
[425297472,1781663433000,-319.0,0.00019999,2]
[425297470,1781663433000,-151.0,0.00019999,2]
[425297474,1781663433000,-152.0,0.00019999,2]
[425297475,1781663433000,-309.0,0.00019999,2]
[425297484,1781663433000,-190.0,0.00021,2]
[425297471,1781663433000,-312.0,0.00019999,2]
[425297478,1781663433000,-157.04236711,0.0002,2]
[425297477,1781663433000,-190.0,0.0002,2]
[425297479,1781663433000,-152.0,0.0002,2]
[425297483,1781663433000,-159.0,0.00021,2]
[425297485,1781663433000,-152.0,0.00021,2]
[425297480,1781663433000,-150.0,0.000205,2]
[425297482,1781663433000,-150.0,0.000207,2]
[425297481,1781663433000,-150.0,0.000206,2]
[425297476,1781663433000,-159.0,0.0002,2]
[425297502,1781663433000,-150.0,0.000226,2]
[425297487,1781663433000,-166.66,0.00021159,2]
[425297511,1781663433000,-150.09,0.000233,2]
[425297508,1781663433000,-152.0,0.00023,2]
[425297534,1781663433000,-337.3,0.00024658,7]
[425297537,1781663433000,-700.0,0.000247,9]
[425297538,1781663433000,-1000.0,0.000248,9]
[425297536,1781663433000,-159.34,0.00024658,2]
[425297542,1781663433000,-407.0,0.0002488,2]
[425297543,1781663433000,-11088.99372224,0.0002488,2]
[425297541,1781663433000,-657.9754713,0.00024822,2]
[425297545,1781663433000,-588.78927642,0.0002488,2]
[425297544,1781663433000,-189.60682686,0.0002488,2]
[425297540,1781663433000,-1276.3653685,0.00024822,2]
[425297546,1781663433000,-1300.0,0.000249,9]
[425297550,1781663433000,-180809.99592263,0.0002498,7]
[425297549,1781663433000,-300.0,0.00024979,10]
[425297548,1781663433000,-150.0,0.00024979,20]
[425297551,1781663433000,-3885.76286075,0.0002498,7]
[425297552,1781663433000,-348.2360598,0.0002498,7]
[425297547,1781663433000,-300.0,0.00024979,10]
[425297539,1781663433000,-4078.622711,0.00024822,2]
[425297525,1781663433000,-151.0,0.00024,2]
[425297535,1781663433000,-158.08,0.00024658,2]
[425297528,1781663433000,-151.0,0.00024,2]
[425297512,1781663433000,-166.66,0.00023386,30]
[425297513,1781663433000,-680.53,0.00023838,2]
[425297516,1781663433000,-152.0,0.00024,2]
[425297514,1781663433000,-262.03,0.00023838,2]
[425297515,1781663433000,-190.0,0.00024,2]
[425297519,1781663433000,-151.0,0.00024,2]
[425297527,1781663433000,-151.0,0.00024,2]
[425297521,1781663433000,-151.0,0.00024,2]
[425297518,1781663433000,-151.0,0.00024,2]
[425297520,1781663433000,-151.0,0.00024,2]
[425297523,1781663433000,-151.0,0.00024,2]
[425297522,1781663433000,-151.0,0.00024,2]
[425297524,1781663433000,-151.0,0.00024,2]
[425297532,1781663433000,-500.0,0.000246,8]
[425297533,1781663433000,-1000.0,0.00024658,2]
[425297530,1781663433000,-151.0,0.00024,2]
[425297531,1781663433000,-200.0,0.000245,8]
[425297526,1781663433000,-151.0,0.00024,2]
[425297529,1781663433000,-151.0,0.00024,2]
[425297517,1781663433000,-151.0,0.00024,2]
[425297583,1781663438000,-537.27830085,0.0002498,7]
[425297581,1781663438000,-966.02901049,0.0002498,7]
[425297582,1781663438000,-270.40341536,0.0002498,7]
[425297580,1781663438000,-237203.62446635,0.0002498,7]
[425297579,1781663438000,-234284.1286,0.0002488,2]
[425297590,1781663440000,-139.08915129,0.0002498,7]
[425297589,1781663440000,-162.79,0.00024658,2]
[425297593,1781663440000,-16497.9833351,0.0002498,7]
[425297592,1781663440000,-830.68439755,0.0002498,7]
[425297591,1781663440000,-2510.7423209,0.0002498,7]
[425297605,1781663443000,-269.53870786,0.0002498,7]
[425297603,1781663443000,-1323.50722869,0.0002498,7]
[425297604,1781663443000,-1304.85704239,0.0002498,7]
[425297616,1781663446000,-2644.62968745,0.0002498,7]
[425297615,1781663446000,-500.0,0.0002498,7]
[425297614,1781663446000,-925.0,0.0002498,7]
[425297613,1781663446000,-5578.42736774,0.0002498,7]
[425297612,1781663446000,-431.885,0.0002498,7]
[425297630,1781664157000,1063.0,0.0003,120]
[425297631,1781664280000,172.18,0.00030137,120]
[425297665,1781664632000,-150.0,0.00019999,2]
[425297666,1781664632000,-151.0,0.00019999,2]
[425297670,1781664632000,-153.0,0.00019999,2]
[425297663,1781664632000,-151.0,0.00019998,2]
[425297668,1781664632000,-151.0,0.00019999,2]
[425297667,1781664632000,-152.0,0.00019999,2]
[425297669,1781664632000,-151.0,0.00019999,2]
[425297671,1781664632000,-153.0,0.00019999,2]
[425297676,1781664632000,-152.0,0.00019999,2]
[425297673,1781664632000,-150.0,0.00019999,2]
[425297674,1781664632000,-151.0,0.00019999,2]
[425297677,1781664632000,-151.0,0.00019999,2]
[425297682,1781664632000,-152.0,0.00019999,2]
[425297664,1781664632000,-152.0,0.00019999,2]
[425297678,1781664632000,-153.0,0.00019999,2]
[425297681,1781664632000,-152.0,0.00019999,2]
[425297680,1781664632000,-151.0,0.00019999,2]
[425297672,1781664632000,-150.0,0.00019999,2]
[425297679,1781664632000,-150.0,0.00019999,2]
[425297658,1781664632000,-151.0,0.00019998,2]
[425297660,1781664632000,-153.0,0.00019998,2]
[425297644,1781664632000,-464.80307558,0.00019998,2]
[425297643,1781664632000,-245.2696223,0.00019998,2]
[425297646,1781664632000,-151.0,0.00019998,2]
[425297648,1781664632000,-150.0,0.00019998,2]
[425297647,1781664632000,-153.0,0.00019998,2]
[425297645,1781664632000,-150.0,0.00019998,2]
[425297649,1781664632000,-151.0,0.00019998,2]
[425297661,1781664632000,-152.0,0.00019998,2]
[425297650,1781664632000,-150.0,0.00019998,2]
[425297652,1781664632000,-151.0,0.00019998,2]
[425297654,1781664632000,-152.0,0.00019998,2]
[425297657,1781664632000,-151.0,0.00019998,2]
[425297653,1781664632000,-151.0,0.00019998,2]
[425297656,1781664632000,-153.0,0.00019998,2]
[425297655,1781664632000,-151.0,0.00019998,2]
[425297659,1781664632000,-151.0,0.00019998,2]
[425297651,1781664632000,-152.0,0.00019998,2]
[425297675,1781664632000,-151.0,0.00019999,2]
[425297662,1781664632000,-150.0,0.00019998,2]
[425297684,1781664632000,-151.0,0.00019999,2]
[425297712,1781664632000,-401.96679064,0.0002351,2]
[425297711,1781664632000,-500.0,0.0002351,2]
[425297710,1781664632000,-1813.5,0.00023255,7]
[425297709,1781664632000,-169.64622655,0.00023,2]
[425297713,1781664632000,-5000.0,0.00023511,2]
[425297716,1781664632000,-3000.0,0.00023726,2]
[425297714,1781664632000,-151.95855655,0.00023726,2]
[425297715,1781664632000,-3000.0,0.00023726,2]
[425297719,1781664632000,-151.0,0.00024499,2]
[425297718,1781664632000,-351.02828398,0.00023726,2]
[425297720,1781664632000,-578.20924308,0.00024499,2]
[425297724,1781664632000,-151.0,0.00024499,2]
[425297722,1781664632000,-670.58624095,0.00024499,2]
[425297721,1781664632000,-151.0,0.00024499,2]
[425297723,1781664632000,-151.0,0.00024499,2]
[425297725,1781664632000,-151.0,0.00024499,2]
[425297683,1781664632000,-151.0,0.00019999,2]
[425297708,1781664632000,-380.30398589,0.00022917,2]
[425297707,1781664632000,-156.70299421,0.00022407,2]
[425297717,1781664632000,-3000.0,0.00023726,2]
[425297703,1781664632000,-323.0,0.000219,7]
[425297685,1781664632000,-152.0,0.00019999,2]
[425297706,1781664632000,-156.70299421,0.00022407,2]
[425297689,1781664632000,-151.0,0.00019999,2]
[425297691,1781664632000,-151.0,0.00019999,2]
[425297687,1781664632000,-151.0,0.00019999,2]
[425297690,1781664632000,-153.0,0.00019999,2]
[425297694,1781664632000,-151.0,0.00019999,2]
[425297692,1781664632000,-152.0,0.00019999,2]
[425297693,1781664632000,-152.0,0.00019999,2]
[425297695,1781664632000,-151.0,0.00019999,2]
[425297696,1781664632000,-152.0,0.00019999,2]
[425297697,1781664632000,-736.09453626,0.00019999,2]
[425297698,1781664632000,-158.0,0.0002,2]
[425297699,1781664632000,-154.65359354,0.0002,2]
[425297700,1781664632000,-1814.07,0.0002,2]
[425297704,1781664632000,-158.0,0.00022,2]
[425297701,1781664632000,-158.0,0.00021,2]
[425297702,1781664632000,-1813.9,0.00021628,2]
[425297705,1781664632000,-156.70299421,0.00022407,2]
[425297739,1781664633000,-261.22,0.00024641,5]
[425297740,1781664633000,-1000.0,0.00024658,2]
[425297741,1781664633000,-269.84,0.00024658,7]
[425297745,1781664633000,-6047.38970563,0.0002487,2]
[425297744,1781664633000,-20533.09460132,0.0002487,2]
[425297749,1781664633000,-162.5201373,0.0002488,2]
[425297747,1781664633000,-1113.1264065,0.0002487,2]
[425297738,1781664633000,-250.0,0.00024641,5]
[425297742,1781664633000,-151.88,0.00024658,2]
[425297736,1781664633000,-236.7296,0.00024558,2]
[425297727,1781664633000,-151.0,0.00024499,2]
[425297734,1781664633000,-151.0,0.00024499,2]
[425297737,1781664633000,-250.0,0.00024641,5]
[425297733,1781664633000,-151.0,0.00024499,2]
[425297732,1781664633000,-151.0,0.00024499,2]
[425297731,1781664633000,-151.0,0.00024499,2]
[425297729,1781664633000,-151.0,0.00024499,2]
[425297730,1781664633000,-151.0,0.00024499,2]
[425297728,1781664633000,-151.0,0.00024499,2]
[425297726,1781664633000,-151.0,0.00024499,2]
[425297748,1781664633000,-7392.6624815,0.0002488,2]
[425297735,1781664633000,-603.1,0.00024532,2]
[425297746,1781664633000,-24424.04986655,0.0002487,2]
[425297743,1781664633000,-157.09,0.00024658,2]
[425297751,1781664633000,-392.52618428,0.0002488,2]
[425297750,1781664633000,-151.9520475,0.0002488,2]
[425297773,1781664633000,-3300.0,0.0002498,7]
[425297772,1781664633000,-355.67814704,0.0002498,7]
[425297771,1781664633000,-2602.36287774,0.0002498,7]
[425297770,1781664633000,-320.0,0.0002498,7]
[425297764,1781664633000,-175.10414305,0.00024979,20]
[425297766,1781664633000,-3000.0,0.00024979,3]
[425297765,1781664633000,-538.39321808,0.00024979,2]
[425297763,1781664633000,-361.15534669,0.00024979,2]
[425297768,1781664633000,-9814.33103972,0.0002498,7]
[425297767,1781664633000,-74257.03636571,0.0002498,7]
[425297769,1781664633000,-29042.31168991,0.0002498,7]
[425297761,1781664633000,-300.0,0.00024979,10]
[425297755,1781664633000,-151.88,0.00024946,7]
[425297754,1781664633000,-813.77608065,0.000249,7]
[425297760,1781664633000,-300.0,0.00024979,10]
[425297753,1781664633000,-1788.63,0.00024883,7]
[425297752,1781664633000,-243.18381856,0.0002488,2]
[425297759,1781664633000,-151.46661221,0.00024979,2]
[425297758,1781664633000,-152.0,0.00024969,7]
[425297757,1781664633000,-152.0,0.00024969,7]
[425297756,1781664633000,-157.09,0.00024962,7]
[425297762,1781664633000,-300.0,0.00024979,10]
[425297780,1781664640000,-150.0,0.00019998,2]
[425297781,1781664640000,-500.0,0.00024954,2]
[425297819,1781664641000,-151.88,0.00025523,2]
[425297827,1781664641000,-151.0,0.00026384,2]
[425297826,1781664641000,-151.0,0.00026384,2]
[425297829,1781664641000,-644.15,0.00026421,2]
[425297817,1781664641000,-151.88,0.00025234,30]
[425297820,1781664641000,-152.0,0.00025622,3]
[425297825,1781664641000,-151.0,0.00026384,2]
[425297822,1781664641000,-151.0,0.00025868,2]
[425297831,1781664641000,-644.15,0.00026421,2]
[425297823,1781664641000,-243.18381849,0.00026008,2]
[425297821,1781664641000,-151.88,0.00025811,7]
[425297839,1781664641000,-644.15,0.00026425,2]
[425297834,1781664641000,-151.0,0.00026424,2]
[425297841,1781664641000,-396.19,0.00026425,2]
[425297842,1781664641000,-644.15,0.00026425,2]
[425297833,1781664641000,-396.21,0.00026421,2]
[425297840,1781664641000,-644.15,0.00026425,2]
[425297843,1781664641000,-644.15,0.00026425,2]
[425297835,1781664641000,-151.0,0.00026424,2]
[425297844,1781664641000,-396.19,0.00026425,2]
[425297845,1781664641000,-396.19,0.00026425,2]
[425297837,1781664641000,-396.21,0.00026424,2]
[425297818,1781664641000,-157.09,0.00025266,30]
[425297824,1781664641000,-151.88,0.00026099,30]
[425297805,1781664641000,-150.18,0.00025,2]
[425297795,1781664641000,-4775.10323601,0.0002498,2]
[425297806,1781664641000,-150.18,0.00025,2]
[425297836,1781664641000,-396.19,0.00026424,2]
[425297782,1781664641000,-25580.82544814,0.0002498,7]
[425297784,1781664641000,-499.41377838,0.0002498,7]
[425297783,1781664641000,-2826.33,0.0002498,7]
[425297785,1781664641000,-3812.37961145,0.0002498,7]
[425297786,1781664641000,-3768430.59905693,0.0002498,7]
[425297796,1781664641000,-151.0,0.0002498,2]
[425297797,1781664641000,-151.0,0.0002498,2]
[425297798,1781664641000,-151.0,0.0002498,2]
[425297791,1781664641000,-407.0,0.0002498,2]
[425297792,1781664641000,-1888.31945311,0.0002498,2]
[425297809,1781664641000,-150.18,0.00025,2]
[425297794,1781664641000,-253.416767,0.0002498,2]
[425297793,1781664641000,-605863.88567995,0.0002498,2]
[425297800,1781664641000,-695.99,0.00025,7]
[425297812,1781664641000,-150.18,0.00025,2]
[425297810,1781664641000,-150.18,0.00025,2]
[425297814,1781664641000,-150.18,0.00025,2]
[425297813,1781664641000,-150.18,0.00025,2]
[425297799,1781664641000,-160.0,0.00024995,2]
[425297816,1781664641000,-150.18,0.00025,2]
[425297815,1781664641000,-150.18,0.00025,2]
[425297801,1781664641000,-13970.81828621,0.00025,2]
[425297803,1781664641000,-150.18,0.00025,2]
[425297789,1781664641000,-408.0,0.0002498,2]
[425297838,1781664641000,-644.15,0.00026425,2]
[425297859,1781664641000,-243.18381849,0.00027136,2]
[425297846,1781664641000,-644.15,0.00026426,2]
[425297875,1781664641000,-396.22,0.00027247,2]
[425297884,1781664641000,-396.19,0.00027248,2]
[425297881,1781664641000,-396.19,0.00027248,2]
[425297878,1781664641000,-396.19,0.00027248,2]
[425297877,1781664641000,-644.15,0.00027248,2]
[425297879,1781664641000,-396.19,0.00027248,2]
[425297880,1781664641000,-644.15,0.00027248,2]
[425297883,1781664641000,-396.19,0.00027248,2]
[425297876,1781664641000,-396.19,0.00027248,2]
[425297882,1781664641000,-644.15,0.00027248,2]
[425297886,1781664641000,-151.0,0.00027397,2]
[425297889,1781664641000,-1500.0,0.00027397,2]
[425297888,1781664641000,-151.0,0.00027397,2]
[425297892,1781664641000,-169.624777,0.00027397,2]
[425297890,1781664641000,-383.88812267,0.00027397,2]
[425297895,1781664641000,-492.765584,0.00027397,2]
[425297896,1781664641000,-492.765584,0.00027397,2]
[425297893,1781664641000,-169.624777,0.00027397,2]
[425297898,1781664641000,-492.765584,0.00027397,2]
[425297897,1781664641000,-492.765584,0.00027397,2]
[425297891,1781664641000,-169.624777,0.00027397,2]
[425297894,1781664641000,-169.624777,0.00027397,2]
[425297857,1781664641000,-695.99,0.000271,7]
[425297885,1781664641000,-644.15,0.00027248,2]
[425297874,1781664641000,-396.38,0.00027247,2]
[425297887,1781664641000,-151.0,0.00027397,2]
[425297866,1781664641000,-644.15,0.00027246,2]
[425297873,1781664641000,-644.15,0.00027247,2]
[425297858,1781664641000,-152.0,0.00027125,4]
[425297847,1781664641000,-644.17,0.00026426,2]
[425297856,1781664641000,-170.47701287,0.00026984,7]
[425297854,1781664641000,-336.0,0.00026759,10]
[425297851,1781664641000,-153.0,0.0002656,5]
[425297850,1781664641000,-151.0,0.0002656,5]
[425297849,1781664641000,-644.16,0.00026426,2]
[425297853,1781664641000,-341.47924963,0.00026691,2]
[425297852,1781664641000,-162.52013725,0.00026626,2]
[425297855,1781664641000,-162.18748648,0.00026984,7]
[425297860,1781664641000,-511.0,0.00027137,2]
[425297848,1781664641000,-398.22,0.00026426,2]
[425297867,1781664641000,-644.19,0.00027246,2]
[425297865,1781664641000,-482.29,0.00027243,2]